bitfinex/quotes_SOLUSD_20251130
["timestamp","ask_amount","ask_price","bid_price","bid_amount"]
[1764513259200,0.68,138.81,138.75,0.21]
[1764513259378,3.18,138.8,138.75,63.01]
[1764513259892,3.18,138.8,138.76,9.30426806]
[1764513260086,3.18,138.8,138.76,72.10426806]
[1764513260285,3.18,138.8,138.77,0.21]
[1764513261004,3.18,138.8,138.77,7.41596796]
[1764513261295,3.18,138.8,138.78,0.21]
[1764513263404,3.18,138.8,138.77,7.41596796]
[1764513264400,0.71,138.79,138.76,70.00658036]
[1764513264586,0.71,138.79,138.76,62.8]
[1764513265199,16.308864,138.76,138.74,0.1]
[1764513265399,3.18,138.75,138.74,0.1]
[1764513265785,3.18,138.75,138.74,0.31]
[1764513267705,3.18,138.76,138.74,0.31]
[1764513270308,7.20628468,138.77,138.74,70.10765647]
[1764513270309,3.18,138.77,138.74,70.10765647]
[1764513270505,3.18,138.77,138.75,0.21]
[1764513270879,3.18,138.77,138.75,63.01]
[1764513271395,3.18,138.77,138.76,0.21]
[1764513271598,3.18,138.77,138.75,63.01]
[1764513272118,3.18,138.77,138.75,62.8]
[1764513272891,3.18,138.77,138.75,70.21716482]
[1764513273303,7.20429327,138.81,138.76,0.21]
[1764513273501,3.18,138.8,138.76,63.01]
[1764513273962,3.18,138.8,138.77,0.21]
[1764513275212,3.18,138.8,138.77,7.4160896]
[1764513275918,3.84,138.8,138.77,7.4160896]
[1764513277012,3.18,138.8,138.77,7.4160896]
[1764513278205,3.18,138.8,138.78,0.21]
[1764513279021,3.18,138.8,138.78,63.01]
[1764513279214,3.18,138.8,138.78,62.8]
[1764513279910,0.66,138.79,138.78,62.8]
[1764513281097,7.86513005,138.79,138.74,62.9]
[1764513281613,0.66,138.78,138.74,62.9]
[1764513281818,3.18,138.77,138.74,62.9]
[1764513282205,0.66,138.76,138.74,62.9]
[1764513282620,3.18,138.75,138.74,63.11]
[1764513283224,3.18,138.75,138.74,62.9]
[1764513283800,7.20586327,138.78,138.74,70.31772668]
[1764513284021,3.18,138.78,138.75,0.21]
[1764513285620,7.86531446,138.79,138.75,0.21]
[1764513285819,3.18,138.78,138.75,7.41673016]
[1764513287928,3.18,138.78,138.75,70.21673016]
[1764513289712,3.84,138.78,138.75,70.21673016]
[1764513290729,3.18,138.78,138.75,70.21673016]
[1764513292325,0.66,138.82,138.76,0.21]
[1764513292513,3.18,138.81,138.76,63.01]
[1764513292822,3.18,138.81,138.77,0.21]
[1764513293137,3.84,138.81,138.77,0.21]
[1764513293427,3.18,138.81,138.76,62.8]
[1764513293624,0.66,138.8,138.76,70.21664372]
[1764513293824,0.66,138.8,138.76,70.00664372]
[1764513294028,0.66,138.8,138.76,70.21664372]
[1764513294833,0.66,138.8,138.76,70.00664372]
[1764513295528,0.66,138.8,138.76,70.21664372]
[1764513296237,10.3844051,138.81,138.76,70.00664372]
[1764513296404,0.72,138.8,138.76,88.23336323]
[1764513297524,0.72,138.8,138.76,88.02336323]
[1764513298216,0.72,138.8,138.76,88.23336323]
[1764513301818,0.72,138.8,138.76,88.23336323]
[1764513304938,3.18,138.81,138.76,88.02336323]
[1764513305139,3.9,138.81,138.77,0.21]
[1764513306338,3.18,138.81,138.76,88.02336323]
[1764513306540,0.72,138.8,138.76,88.23336323]
[1764513306846,0.72,138.8,138.77,0.21]
[1764513307149,0.72,138.8,138.77,7.41565158]
[1764513308519,0.72,138.8,138.77,70.21565158]
[1764513308941,3.18,138.81,138.77,88.23107278]
[1764513309148,3.18,138.81,138.79,7.20513005]
[1764513309443,3.18,138.81,138.79,70.00513005]
[1764513309638,3.9,138.81,138.79,70.00513005]
[1764513310947,3.9,138.81,138.79,62.8]
[1764513312631,0.72,138.8,138.79,62.8]
[1764513313855,7.92461095,138.8,138.76,62.8]
[1764513314028,7.92461095,138.8,138.76,70.00662048]
[1764513314227,0.72,138.79,138.76,70.00662048]
[1764513316546,3.18,138.8,138.77,0.21]
[1764513317550,3.18,138.8,138.78,7.20564922]
[1764513317851,17.028864,138.81,138.78,7.20564922]
[1764513318027,20.208864,138.81,138.78,7.20564922]
[1764513318650,0.72,138.8,138.77,70.00604701]
[1764513322266,7.92479179,138.8,138.77,62.8]
[1764513324056,0.66,138.79,138.77,62.8]
[1764513324362,7.86534487,138.79,138.77,62.8]
[1764513325747,3.18,138.78,138.77,62.8]
[1764513326151,7.20616848,138.77,138.74,0.1]
[1764513326349,7.92616848,138.77,138.74,0.1]
[1764513326562,0.72,138.76,138.74,0.1]
[1764513326764,3.18,138.75,138.74,0.1]
[1764513327144,3.9,138.75,138.74,0.1]
[1764513328265,11.1072072,138.75,138.74,0.1]
[1764513329061,10.3872072,138.75,138.74,0.1]
[1764513330062,3.18,138.75,138.74,0.1]
[1764513332962,0.72,138.76,138.74,0.1]
[1764513333361,3.9,138.76,138.74,0.1]
[1764513333847,0.72,138.75,138.74,0.1]
[1764513335372,0.72,138.75,138.74,62.9]
[1764513344280,3.9,138.75,138.74,62.9]
[1764513345279,11.1072072,138.75,138.74,0.1]
[1764513350486,16.308864,138.75,138.74,0.1]
[1764513350684,3.18,138.75,138.74,0.1]
[1764513350884,3.9,138.75,138.74,0.1]
[1764513354488,11.1072072,138.75,138.74,0.1]
[1764513356089,11.1072072,138.75,138.74,62.9]
[1764513357684,27.4160712,138.75,138.74,62.9]
[1764513360090,24.2360712,138.75,138.74,62.9]
[1764513360291,27.4160712,138.75,138.74,62.9]
[1764513361992,27.4160712,138.75,138.74,0.1]
[1764513370414,11.1072072,138.75,138.74,0.1]
[1764513370710,11.1072072,138.75,138.69,0.1]
[1764513370711,16.308864,138.72,138.69,0.1]
[1764513371015,16.308864,138.71,138.69,0.1]
[1764513371184,3.18,138.7,138.69,0.1]
[1764513371384,3.86,138.7,138.69,0.1]
[1764513371698,0.68,138.7,138.69,0.1]
[1764513371903,3.86,138.7,138.69,0.1]
[1764513372089,11.06980533,138.7,138.69,0.1]
[1764513372280,0.28432314,138.68,138.66,1e-08]
[1764513372484,16.308864,138.67,138.66,1e-08]
[1764513372702,19.488864,138.67,138.66,1e-08]
[1764513372904,23.05809799,138.67,138.66,1e-08]
[1764513373507,23.05809799,138.67,138.62,0.1]
[1764513373508,16.308864,138.63,138.62,0.1]
[1764513373812,19.488864,138.63,138.62,0.1]
[1764513374009,20.168864,138.63,138.62,0.1]
[1764513374197,23.058933,138.63,138.62,0.1]
[1764513374515,30.27237886,138.63,138.62,0.1]
[1764513374895,23.058933,138.63,138.62,0.1]
[1764513375102,16.308864,138.63,138.62,0.1]
[1764513375305,3.18,138.63,138.62,0.1]
[1764513375510,3.18,138.63,138.62,0.61]
[1764513375707,3.18,138.63,138.62,0.1]
[1764513377430,3.18,138.63,138.62,0.61]
[1764513377798,7.99495132,138.68,138.62,63.41]
[1764513378004,3.18,138.67,138.62,63.41]
[1764513378232,3.18,138.67,138.63,0.51]
[1764513378420,19.488864,138.67,138.63,0.51]
[1764513379006,19.488864,138.67,138.63,7.72343594]
[1764513379521,19.488864,138.67,138.64,0.51]
[1764513379929,7.88988674,138.7,138.64,63.31]
[1764513380105,19.488864,138.72,138.64,63.31]
[1764513380106,0.68,138.72,138.64,63.31]
[1764513380310,16.308864,138.7,138.65,0.51]
[1764513380516,3.86,138.71,138.65,0.51]
[1764513380719,11.06928866,138.71,138.66,7.21188518]
[1764513380932,27.37815266,138.71,138.66,7.21188518]
[1764513381103,0.68,138.7,138.66,7.72188518]
[1764513381549,0.68,138.7,138.67,0.51]
[1764513383035,0.68,138.7,138.66,70.01188518]
[1764513383325,0.68,138.7,138.66,70.52188518]
[1764513383904,3.18,138.7,138.67,0.51]
[1764513384539,3.18,138.7,138.67,7.72133627]
[1764513384905,3.18,138.7,138.68,0.51]
[1764513387156,16.308864,138.71,138.68,63.31]
[1764513387445,24.83830415,138.76,138.69,9.09426806]
[1764513387651,24.83830415,138.76,138.69,27.62608335]
[1764513387945,3.18,138.76,138.72,0.28432314]
[1764513388153,21.64892657,138.83,138.72,0.28432314]
[1764513388459,0.71,138.8,138.75,7.2072072]
[1764513388612,3.18,138.79,138.75,7.2072072]
[1764513388810,3.18,138.79,138.75,7.7172072]
[1764513389038,3.89,138.79,138.75,7.7172072]
[1764513390444,3.89,138.79,138.75,0.51]
[1764513390819,0.71,138.78,138.72,7.71866175]
[1764513391014,0.71,138.78,138.72,23.73615766]
[1764513391949,0.71,138.78,138.73,0.51]
[1764513392247,3.89,138.79,138.74,7.20772668]
[1764513392545,23.51358439,138.8,138.74,7.20772668]
[1764513392844,3.2,138.85,138.75,25.91313206]
[1764513393021,0.71,138.81,138.75,25.91313206]
[1764513393342,3.91,138.81,138.76,0.51]
[1764513393645,3.91,138.81,138.76,16.818864]
[1764513393846,3.91,138.81,138.77,7.20616848]
[1764513394550,3.91,138.81,138.76,16.818864]
[1764513394551,0.71,138.8,138.76,16.308864]
[1764513394753,0.71,138.8,138.74,7.20772668]
[1764513394946,0.71,138.8,138.74,28.85509111]
[1764513395824,0.71,138.8,138.73,7.20817208]
[1764513395825,16.308864,138.79,138.73,7.20817208]
[1764513396024,16.308864,138.77,138.73,7.20817208]
[1764513396226,3.2,138.76,138.73,7.20817208]
[1764513396456,3.91,138.76,138.73,7.20817208]
[1764513397053,3.91,138.76,138.72,7.20876585]
[1764513397226,3.91,138.76,138.72,7.71876585]
[1764513397427,3.91,138.76,138.72,25.74068049]
[1764513398050,3.2,138.76,138.73,0.51]
[1764513398231,17.018864,138.78,138.73,0.51]
[1764513398437,3.2,138.77,138.73,0.51]
[1764513398826,3.91,138.77,138.73,18.52098384]
[1764513399043,3.91,138.77,138.73,7.71775912]
[1764513400242,3.91,138.77,138.73,25.7383747]
[1764513400942,3.91,138.77,138.73,88.5383747]
[1764513401244,3.2,138.77,138.75,7.2072072]
[1764513402329,3.91,138.77,138.74,7.20772668]
[1764513405054,3.2,138.77,138.74,25.73704338]
[1764513406572,3.2,138.77,138.74,88.53704338]
[1764513407141,3.91,138.77,138.74,88.53704338]
[1764513407341,3.91,138.77,138.74,88.02704338]
[1764513409655,3.2,138.77,138.74,88.02704338]
[1764513409841,0.71,138.76,138.74,62.8]
[1764513412432,7.91673675,138.76,138.74,62.8]
[1764513412833,0.71,138.75,138.74,62.8]
[1764513413245,0.71,138.75,138.73,62.8]
[1764513413742,0.71,138.75,138.68,113.30994492]
[1764513413940,16.308864,138.73,138.68,62.8]
[1764513414146,3.18,138.72,138.67,70.01123039]
[1764513414362,11.09892352,138.72,138.67,70.01123039]
[1764513414562,0.71,138.71,138.67,70.01123039]
[1764513415349,0.71,138.71,138.67,62.8]
[1764513415843,0.71,138.71,138.67,70.01098443]
[1764513417055,24.22818407,138.71,138.67,70.01098443]
[1764513417665,0.68,138.7,138.67,70.01098443]
[1764513418563,0.68,138.7,138.67,62.8]
[1764513419161,3.18,138.69,138.67,62.8]
[1764513419353,3.18,138.69,138.66,7.72172934]
[1764513419554,3.86,138.69,138.66,7.21172934]
[1764513420261,3.18,138.69,138.66,7.72172934]
[1764513420567,3.18,138.69,138.68,7.21084511]
[1764513423566,3.18,138.7,138.68,7.21084511]
[1764513424164,3.18,138.7,138.65,25.24268539]
[1764513424342,3.18,138.7,138.68,0.51]
[1764513424541,3.18,138.7,138.68,63.31]
[1764513424966,3.18,138.7,138.69,0.51]
[1764513425355,3.18,138.7,138.68,62.8]
[1764513425555,3.18,138.7,138.68,63.31]
[1764513425866,3.18,138.7,138.69,7.21032518]
[1764513426450,7.20749758,138.75,138.69,70.01032518]
[1764513426770,16.308864,138.72,138.69,70.01032518]
[1764513426958,16.308864,138.72,138.69,7.21032518]
[1764513427158,0.68,138.71,138.69,7.21032518]
[1764513427372,16.988864,138.72,138.69,7.21032518]
[1764513428067,0.68,138.71,138.68,7.21074797]
[1764513428468,3.86,138.71,138.68,7.21074797]
[1764513428847,0.68,138.7,138.68,7.21074797]
[1764513430357,16.988864,138.7,138.68,7.21074797]
[1764513430972,0.68,138.7,138.67,7.21121861]
[1764513432271,0.68,138.7,138.66,7.21173532]
[1764513432478,0.68,138.7,138.66,70.01173532]
[1764513432778,0.68,138.7,138.66,70.52173532]
[1764513432960,16.988864,138.7,138.66,70.52173532]
[1764513433466,16.988864,138.69,138.66,62.8]
[1764513433651,3.18,138.68,138.66,62.8]
[1764513433851,16.988864,138.67,138.66,62.8]
[1764513434053,24.20022911,138.67,138.66,62.8]
[1764513434257,24.20022911,138.67,138.62,70.11367102]
[1764513434463,0.68,138.66,138.62,62.9]
[1764513434661,3.18,138.65,138.62,62.9]
[1764513435164,0.68,138.64,138.62,62.9]
[1764513436955,3.18,138.65,138.62,70.11394745]
[1764513437164,3.86,138.65,138.62,70.11394745]
[1764513437485,0.68,138.64,138.62,62.9]
[1764513438377,26.70130171,138.65,138.62,62.9]
[1764513438679,3.18,138.64,138.62,70.62383603]
[1764513438879,3.18,138.64,138.62,70.11383603]
[1764513440453,20.168864,138.65,138.62,70.11383603]
[1764513441780,19.488864,138.65,138.62,70.11383603]
[1764513442385,20.168864,138.65,138.62,70.11383603]
[1764513442555,27.38128726,138.65,138.62,70.11383603]
[1764513443780,27.38128726,138.65,138.62,62.9]
[1764513444873,0.66,138.64,138.62,62.9]
[1764513445183,7.87310779,138.64,138.62,0.1]
[1764513445561,0.69,138.63,138.62,0.1]
[1764513446383,7.90344586,138.63,138.62,0.1]
[1764513447881,7.21344586,138.63,138.62,0.1]
[1764513448260,7.90344586,138.63,138.62,0.1]
[1764513450282,16.998864,138.63,138.62,0.1]
[1764513450496,24.21230986,138.63,138.62,0.1]
[1764513453172,33.30657792,138.63,138.61,0.1]
[1764513453376,0.69,138.62,138.61,0.1]
[1764513454505,7.90396623,138.62,138.61,0.1]
[1764513454678,0.69,138.64,138.61,0.1]
[1764513454879,0.69,138.64,138.61,0.61]
[1764513455082,16.308864,138.63,138.61,0.1]
[1764513455603,16.998864,138.63,138.61,0.1]
[1764513456298,23.5225778,138.63,138.61,0.1]
[1764513456505,0.69,138.62,138.61,0.1]
[1764513457793,24.21283023,138.62,138.61,0.1]
[1764513459900,0.69,138.62,138.61,0.1]
[1764513460105,16.998864,138.62,138.61,62.9]
[1764513462591,10.08888123,138.62,138.61,62.9]
[1764513462798,10.08888123,138.62,138.61,0.1]
[1764513463997,13.26888123,138.62,138.61,0.1]
[1764513464498,11.08396623,138.62,138.61,0.1]
[1764513465294,13.26888123,138.62,138.61,0.1]
[1764513466425,11.08396623,138.62,138.61,0.1]
[1764513466609,13.26888123,138.62,138.61,0.1]
[1764513468620,11.08396623,138.62,138.61,0.1]
[1764513468815,13.26888123,138.62,138.61,0.1]
[1764513471387,11.08396623,138.62,138.61,0.1]
[1764513471592,13.26888123,138.62,138.61,0.1]
[1764513471807,22.07882615,138.62,138.61,0.1]
[1764513475997,22.36314929,138.62,138.61,1e-08]
[1764513476493,20.17823429,138.62,138.61,1e-08]
[1764513476697,22.36314929,138.62,138.61,1e-08]
[1764513477210,18.493779,138.59,138.58,1.24159057]
[1764513477521,21.673779,138.59,138.58,1.24159057]
[1764513477710,22.343779,138.59,138.58,1.24159057]
[1764513478526,29.55930681,138.59,138.58,1.24159057]
[1764513481115,27.37439181,138.59,138.58,1.24159057]
[1764513481321,29.55930681,138.59,138.58,1.24159057]
[1764513484025,26.70439181,138.59,138.58,1.24159057]
[1764513485231,3.18,138.59,138.58,1.24159057]
[1764513485413,3.18,138.59,138.58,1.75159057]
[1764513485610,3.18,138.59,138.58,1.24159057]
[1764513488430,13.25044281,138.59,138.58,1.24159057]
[1764513491926,22.06038773,138.59,138.58,1.24159057]
[1764513493216,19.87547273,138.59,138.58,1.24159057]
[1764513493424,22.06038773,138.59,138.58,1.24159057]
[1764513495432,22.34471087,138.59,138.58,1e-08]
[1764513498135,20.15979587,138.59,138.58,1e-08]
[1764513498334,22.34471087,138.59,138.58,1e-08]
[1764513500533,23.57747435,138.59,138.58,1e-08]
[1764513521713,10.63320629,138.59,138.58,0.51000001]
[1764513521885,13.81320629,138.59,138.58,0.51000001]
[1764513522092,7.21552781,138.59,138.58,0.51000001]
[1764513522386,10.39552781,138.59,138.58,0.51000001]
[1764513522879,26.70439181,138.59,138.58,0.51000001]
[1764513524350,3.18,138.59,138.58,0.51000001]
[1764513525076,19.488864,138.59,138.58,0.51000001]
[1764513525589,22.90654248,138.59,138.58,1e-08]
[1764513525797,22.90654248,138.59,138.58,0.51000001]
[1764513526294,30.12207029,138.59,138.58,0.51000001]
[1764513527588,26.70439181,138.59,138.58,0.51000001]
[1764513528391,26.70439181,138.59,138.58,1e-08]
[1764513528794,30.80207029,138.59,138.58,1e-08]
[1764513529001,39.89633835,138.59,138.58,1e-08]
[1764513529296,61.58439184,138.59,138.58,1e-08]
[1764513529997,72.25933638,138.59,138.58,1e-08]
[1764513530299,82.79545541,138.59,138.58,1e-08]
[1764513530795,85.93335247,138.59,138.58,1e-08]
[1764513530990,88.68918217,138.59,138.58,1e-08]
[1764513531194,25.11880892,138.55,138.49,0.1]
[1764513531395,12.51194654,138.48,138.47,0.1]
[1764513531705,12.27426806,138.48,138.47,0.1]
[1764513531895,16.37194654,138.48,138.47,0.1]
[1764513532296,16.0876234,138.48,138.47,0.1]
[1764513532681,17.27318714,138.5,138.47,0.1]
[1764513532880,17.27318714,138.5,138.47,0.61]
[1764513532881,3.18,138.49,138.47,0.61]
[1764513533087,16.308864,138.48,138.47,0.61]
[1764513533383,6.59767848,138.49,138.47,0.61]
[1764513533694,19.72654248,138.48,138.47,0.1]
[1764513533884,16.308864,138.48,138.47,0.1]
[1764513534069,19.72654248,138.48,138.47,0.1]
[1764513534496,16.308864,138.48,138.47,0.1]
[1764513534796,19.72654248,138.48,138.47,0.1]
[1764513534998,26.94780186,138.48,138.47,0.1]
[1764513535181,19.72654248,138.48,138.47,0.61]
[1764513535375,19.72654248,138.48,138.47,0.1]
[1764513535581,3.2,138.48,138.47,0.61]
[1764513536725,6.61767848,138.48,138.47,0.1]
[1764513537004,3.2,138.48,138.47,0.1]
[1764513537797,10.42125938,138.48,138.47,0.1]
[1764513539004,7.22125938,138.48,138.47,0.1]
[1764513539192,10.42125938,138.48,138.47,0.1]
[1764513539397,3.2,138.48,138.47,0.1]
[1764513539600,10.42125938,138.48,138.47,0.1]
[1764513539978,14.53893786,138.48,138.47,0.1]
[1764513541303,23.34888278,138.48,138.47,0.1]
[1764513541505,23.63320592,138.48,138.47,0.1]
[1764513541708,23.34888278,138.48,138.47,0.1]
[1764513541905,20.14888278,138.48,138.47,0.1]
[1764513542100,23.34888278,138.48,138.47,0.1]
[1764513542815,23.34888278,138.48,138.44,1e-08]
[1764513542816,25.40313206,138.45,138.44,1e-08]
[1764513542998,32.02081054,138.45,138.44,1e-08]
[1764513543201,32.72081054,138.45,138.44,1e-08]
[1764513543400,50.58902605,138.45,138.44,1e-08]
[1764513544605,39.94363466,138.45,138.44,1e-08]
[1764513545108,30.1493666,138.45,138.44,1e-08]
[1764513545896,7.22282412,138.45,138.44,0.51000001]
[1764513546094,10.42282412,138.45,138.44,0.51000001]
[1764513546297,26.73168812,138.45,138.44,0.51000001]
[1764513546510,26.73168812,138.45,138.44,1e-08]
[1764513546691,30.1493666,138.45,138.44,1e-08]
[1764513546886,26.73168812,138.45,138.44,1e-08]
[1764513547100,30.1493666,138.45,138.44,1e-08]
[1764513547404,26.73168812,138.45,138.44,1e-08]
[1764513547596,26.73168812,138.45,138.44,0.51000001]
[1764513548494,10.42282412,138.45,138.44,0.51000001]
[1764513548804,26.73168812,138.45,138.44,0.51000001]
[1764513549203,7.22262583,138.46,138.44,3.92767849]
[1764513549515,3.2,138.45,138.44,0.51000001]
[1764513549687,3.2,138.45,138.44,1e-08]
[1764513550189,3.2,138.45,138.44,0.51000001]
[1764513552804,10.42282412,138.45,138.44,0.51000001]
[1764513553001,3.2,138.45,138.44,0.51000001]
[1764513553205,22.17157345,138.48,138.44,3.92767849]
[1764513553206,16.308864,138.48,138.44,3.92767849]
[1764513553511,3.2,138.48,138.47,3.41767848]
[1764513554005,3.2,138.48,138.47,3.92767848]
[1764513554714,3.2,138.48,138.45,3.41767848]
[1764513554900,3.2,138.48,138.45,3.92767848]
[1764513555500,10.42144904,138.48,138.45,3.92767848]
[1764513555707,14.53912752,138.48,138.44,66.72767849]
[1764513556017,14.53912752,138.48,138.44,3.92767849]
[1764513556521,13.83912752,138.48,138.44,3.41767849]
[1764513556701,10.42144904,138.48,138.45,0.51]
[1764513556907,13.83912752,138.48,138.45,0.51]
[1764513557107,10.42144904,138.48,138.45,0.51]
[1764513557707,19.72654248,138.46,138.44,1e-08]
[1764513557911,6.61767848,138.45,138.44,1e-08]
[1764513558229,7.31767848,138.45,138.44,1e-08]
[1764513558924,14.5405026,138.45,138.44,1e-08]
[1764513559611,3.2,138.45,138.44,1e-08]
[1764513560205,6.61767848,138.45,138.44,1e-08]
[1764513560614,14.5405026,138.45,138.44,1e-08]
[1764513560812,7.22282412,138.45,138.44,1e-08]
[1764513561016,10.42282412,138.45,138.44,1e-08]
[1764513562827,15.63867834,138.45,138.44,1e-08]
[1764513564830,10.42282412,138.45,138.44,0.51000001]
[1764513566229,16.35867834,138.45,138.44,1e-08]
[1764513567335,15.63867834,138.45,138.44,1e-08]
[1764513567732,10.42282412,138.45,138.44,1e-08]
[1764513568332,15.63867834,138.45,138.44,1e-08]
[1764513568706,16.35867834,138.45,138.44,1e-08]
[1764513569409,11.14282412,138.45,138.44,1e-08]
[1764513569610,16.35867834,138.45,138.44,1e-08]
[1764513574218,16.64300148,138.45,138.44,1e-08]
[1764513576639,25.4529464,138.45,138.44,1e-08]
[1764513577021,22.2529464,138.45,138.44,1e-08]
[1764513577421,25.4529464,138.45,138.44,1e-08]
[1764513579247,19.95276904,138.45,138.44,1e-08]
[1764513579425,15.63867834,138.45,138.44,1e-08]
[1764513579925,10.42282412,138.45,138.44,1e-08]
[1764513580443,7.22282412,138.45,138.44,1e-08]
[1764513580642,10.42282412,138.45,138.44,0.51000001]
[1764513580845,15.63867834,138.45,138.44,1e-08]
[1764513581716,31.94754234,138.45,138.44,1e-08]
[1764513581918,32.66754234,138.45,138.44,1e-08]
[1764513582352,29.64281936,138.45,138.44,1e-08]
[1764513582844,28.92281936,138.45,138.44,1e-08]
[1764513584632,29.64281936,138.45,138.44,1e-08]
[1764513585347,28.92281936,138.45,138.44,1e-08]
[1764513585643,26.73168812,138.45,138.44,1e-08]
[1764513585941,29.64281936,138.45,138.44,1e-08]
[1764513588948,28.92281936,138.45,138.44,1e-08]
[1764513590226,26.73168812,138.45,138.44,0.51000001]
[1764513591552,19.508864,138.45,138.44,0.51000001]
[1764513592549,3.2,138.45,138.44,0.51000001]
[1764513596144,5.39113124,138.45,138.44,1e-08]
[1764513596331,3.2,138.45,138.44,1e-08]
[1764513596747,5.39113124,138.45,138.44,1e-08]
[1764513597336,12.61395536,138.45,138.44,1e-08]
[1764513598555,3.2,138.45,138.44,1e-08]
[1764513598759,5.39113124,138.45,138.44,1e-08]
[1764513598948,12.61395536,138.45,138.44,1e-08]
[1764513599557,3.2,138.45,138.44,1e-08]
[1764513600743,5.39113124,138.45,138.44,1e-08]
[1764513600943,3.2,138.45,138.44,1e-08]
[1764513601155,5.39113124,138.45,138.44,1e-08]
[1764513602160,6.08113124,138.45,138.44,1e-08]
[1764513602457,5.39113124,138.45,138.44,1e-08]
[1764513603163,12.61395536,138.45,138.44,1e-08]
[1764513603549,10.42282412,138.45,138.44,0.51000001]
[1764513603745,10.42282412,138.45,138.44,1e-08]
[1764513604339,12.61395536,138.45,138.44,1e-08]
[1764513606358,29.61281936,138.45,138.44,1e-08]
[1764513607060,22.39822342,138.45,138.44,1e-08]
[1764513609456,29.61281936,138.45,138.44,1e-08]
[1764513609861,13.30395536,138.45,138.44,1e-08]
[1764513610162,29.61281936,138.45,138.44,1e-08]
[1764513610364,13.30395536,138.45,138.44,1e-08]
[1764513610767,7.22282412,138.45,138.44,1e-08]
[1764513610958,29.61281936,138.45,138.44,1e-08]
[1764513611162,28.92281936,138.45,138.44,1e-08]
[1764513611863,29.61281936,138.45,138.44,1e-08]
[1764513612178,38.70708742,138.45,138.44,1e-08]
[1764513612549,29.61281936,138.45,138.44,1e-08]
[1764513613463,13.30395536,138.45,138.44,1e-08]
[1764513613669,22.39822342,138.45,138.44,1e-08]
[1764513616074,19.19822342,138.45,138.44,1e-08]
[1764513616273,22.39822342,138.45,138.44,1e-08]
[1764513617076,20.20709218,138.45,138.44,1e-08]
[1764513617288,17.00709218,138.45,138.44,1e-08]
[1764513617475,20.20709218,138.45,138.44,1e-08]
[1764513617861,7.22282412,138.45,138.44,1e-08]
[1764513618063,12.61395536,138.45,138.44,1e-08]
[1764513618282,28.92281936,138.45,138.44,1e-08]
[1764513618584,12.61395536,138.45,138.44,1e-08]
[1764513618795,13.30395536,138.45,138.44,1e-08]
[1764513619958,29.61281936,138.45,138.44,1e-08]
[1764513620159,13.30395536,138.45,138.44,1e-08]
[1764513621284,12.61395536,138.45,138.44,1e-08]
[1764513621452,28.92281936,138.45,138.44,1e-08]
[1764513621962,27.42168812,138.45,138.44,1e-08]
[1764513622290,28.92281936,138.45,138.44,1e-08]
[1764513622597,30.15509674,138.45,138.44,1e-08]
[1764513626071,26.73168812,138.45,138.44,1e-08]
[1764513626271,30.87509674,138.45,138.44,1e-08]
[1764513627666,27.45168812,138.45,138.44,1e-08]
[1764513627864,30.87509674,138.45,138.44,1e-08]
[1764513631808,14.56623274,138.45,138.44,1e-08]
[1764513631982,23.6605008,138.45,138.44,1e-08]
[1764513632471,20.23709218,138.45,138.44,1e-08]
[1764513632671,23.6605008,138.45,138.44,1e-08]
[1764513634695,7.22282412,138.45,138.44,1e-08]
[1764513634888,10.42282412,138.45,138.44,0.51000001]
[1764513635191,30.15509674,138.45,138.44,0.51000001]
[1764513635391,30.15509674,138.45,138.44,1e-08]